[Event "Konyaalti Open-A 2019"]
[Site "Konyaalti"]
[Date "2019.11.22"]
[Round "7.8"]
[White "Solozhenkina, Elizaveta"]
[Black "Mammadov, Zaur"]
[Result "1/2-1/2"]
[ECO "C08"]
[WhiteElo "2314"]
[BlackElo "2421"]
[Annotator "ChessBase"]
[PlyCount "229"]
[EventDate "2019.11.20"]
[EventType "swiss"]
[EventCountry "TUR"]
[SourceTitle "playchess.com"]
[Source "ChessBase"]
[SourceQuality "1"]
[TimeControl "5400+30"]

1. e4 {[%emt 0:00:30]} e6 {[%emt 0:00:30]} 2. d4 {[%emt 0:00:30]} d5 {[%emt 0:00:30]} 3. Nd2 {[%emt 0:00:30]} c5 {[%emt 0:00:30]} 4. exd5 {[%emt 0:00:30]} exd5 {[%emt 0:00:30]} 5. Bb5+ {[%emt 0:00:30]} Nc6 {[%emt 0:00:30]} 6. Ngf3 {[%emt 0:00:30]} Nf6 {[%emt 0:00:30]} 7. O-O {[%emt 0:00:30]} cxd4 {[%emt 0:02:30]} 8. Re1+ {[%emt 0:15:30]} Be7 {[%emt 0:01:30]} 9. Qe2 {[%emt 0:00:30]} Bg4 {[%emt 0:01:30]} 10. h3 {[%emt 0:03:30]} Bh5 {[%emt 0:01:30]} 11. b3 {[%emt 0:02:30]} Rc8 {[%emt 0:09:30]} 12. Ba3 {[%emt 0:15:30]} Kf8 {[%emt 0:00:30]} 13. Bxe7+ {[%emt 0:00:30]} Nxe7 {[%emt 0:00:30]} 14. Bd3 {[%emt 0:02:30]} Nc6 {[%emt 0:03:30]} 15. a3 {[%emt 0:16:30]} Qd6 {[%emt 0:08:30]} 16. b4 {[%emt 0:05:30]} a6 {[%emt 0:00:30]} 17. b5 {[%emt 0:03:30]} axb5 {[%emt 0:00:30]} 18. Bf5 {[%emt 0:02:30]} Ra8 {[%emt 0:06:30]} 19. Qxb5 {[%emt 0:01:30]} Bxf3 {[%emt 0:00:00]} 20. Nxf3 {[%emt 0:00:30]} g6 {[%emt 0:00:00]} 21. Qxb7 {[%emt 0:04:30]} Rb8 {[%emt 0:12:30]} 22. Qa6 {[%emt 0:00:30]} Qc7 {[%emt 0:07:30]} 23. Rab1 {[%emt 0:06:53]} Kg7 {[%emt 0:00:30]} 24. Bd3 {[%emt 0:00:05]} Nd7 {[%emt 0:00:30]} 25. Rb5 {[%emt 0:04:07]} Rhd8 {[%emt 0:14:30]} 26. Reb1 {[%emt 0:03:48]} Nc5 {[%emt 0:01:30]} 27. Rxc5 {[%emt 0:01:46]} Rxb1+ {[%emt 0:00:30]} 28. Bf1 {[%emt 0:00:04]} Rb6 {[%emt 0:00:00]} 29. Qa4 {[%emt 0:01:03]} Qd6 {[%emt 0:00:00]} 30. Rb5 {[%emt 0:00:04]} Rxb5 {[%emt 0:04:30]} 31. Bxb5 {[%emt 0:00:21]} Ne7 {[%emt 0:00:30]} 32. Nxd4 {[%emt 0:00:27]} Qe5 {[%emt 0:01:30]} 33. Qb4 {[%emt 0:01:31]} Nf5 {[%emt 0:02:30]} 34. Nf3 {[%emt 0:00:42]} Qe4 {[%emt 0:01:36]} 35. Qb2+ {[%emt 0:00:30]} d4 {[%emt 0:01:59]} 36. Bd3 {[%emt 0:02:29]} Qd5 {[%emt 0:00:01]} 37. a4 {[%emt 0:00:25]} Ra8 {[%emt 0:00:30]} 38. Bb5 {[%emt 0:01:23]} Kg8 {[%emt 0:01:09]} 39. Qb4 {[%emt 0:01:05]} Rb8 {[%emt 0:03:54]} 40. Qd2 {[%emt 0:01:24]} Rc8 {[%emt 0:03:08]} 41. Bd3 {[%emt 0:00:56]} Ng7 {[%emt 0:01:26]} 42. a5 {[%emt 0:01:16]} Rb8 {[%emt 0:00:11]} 43. a6 {[%emt 0:01:27]} Rb1+ {[%emt 0:00:10]} 44. Kh2 {[%emt 0:00:10]} Ne6 {[%emt 0:01:38]} 45. Qe2 {[%emt 0:00:37]} Ra1 {[%emt 0:02:40]} 46. Bc4 {[%emt 0:00:42]} Qd6+ {[%emt 0:00:06]} 47. g3 {[%emt 0:00:02]} Qc6 {[%emt 0:00:53]} 48. h4 {[%emt 0:00:24]} Kf8 {[%emt 0:04:05]} 49. Bb5 {[%emt 0:00:23]} Qa8 {[%emt 0:01:25]} 50. Kg2 {[%emt 0:00:51]} Qb8 {[%emt 0:01:45]} 51. Ne5 {[%emt 0:00:59]} Kg7 {[%emt 0:00:49]} 52. Nc6 {[%emt 0:00:36]} Qd6 {[%emt 0:00:01]} 53. Qe4 {[%emt 0:00:25]} Nc5 {[%emt 0:01:00]} 54. Qxd4+ {[%emt 0:00:15]} Qxd4 {[%emt 0:00:00]} 55. Nxd4 {[%emt 0:00:37]} Nxa6 {[%emt 0:00:14]} 56. Nf3 {[%emt 0:00:35]} Nc5 {[%emt 0:00:15]} 57. Bc4 {[%emt 0:00:30]} Rc1 {[%emt 0:00:40]} 58. Nd4 {[%emt 0:00:13]} Rd1 {[%emt 0:00:13]} 59. Nf3 {[%emt 0:00:10]} f5 {[%emt 0:00:30]} 60. Be2 {[%emt 0:00:37]} Rc1 {[%emt 0:00:10]} 61. Nd4 {[%emt 0:00:25]} Kf6 {[%emt 0:00:14]} 62. Kf3 {[%emt 0:00:12]} Ne6 {[%emt 0:01:13]} 63. Nxe6 {[%emt 0:01:04]} Kxe6 {[%emt 0:00:01]} 64. Bd3 {[%emt 0:00:05]} Re1 {[%emt 0:00:13]} 65. Kg2 {[%emt 0:01:04]} Ke5 {[%emt 0:00:27]} 66. Kf3 {[%emt 0:00:29]} Ra1 {[%emt 0:00:42]} 67. Ke3 {[%emt 0:00:37]} h6 {[%emt 0:00:03]} 68. Bc4 {[%emt 0:00:28]} Ra3+ {[%emt 0:00:19]} 69. Bd3 {[%emt 0:00:03]} Ra4 {[%emt 0:00:17]} 70. Kf3 {[%emt 0:00:30]} g5 {[%emt 0:00:00]} 71. hxg5 {[%emt 0:00:06]} hxg5 {[%emt 0:00:08]} 72. Ke3 {[%emt 0:00:36]} Rb4 {[%emt 0:00:39]} 73. Ke2 {[%emt 0:00:19]} Rb1 {[%emt 0:01:03]} 74. Ke3 {[%emt 0:01:13]} Re1+ {[%emt 0:00:15]} 75. Kd2 {[%emt 0:00:04]} Rg1 {[%emt 0:00:01]} 76. Ke3 {[%emt 0:00:30]} Rh1 {[%emt 0:01:01]} 77. Ke2 {[%emt 0:00:37]} Rh3 {[%emt 0:00:19]} 78. Kf3 {[%emt 0:00:46]} g4+ {[%emt 0:00:01]} 79. Kg2 {[%emt 0:00:45]} f4 {[%emt 0:00:09]} 80. Be2 {[%emt 0:00:34]} fxg3 {[%emt 0:00:59]} 81. Bxg4 {[%emt 0:00:25]} Rh8 {[%emt 0:00:06]} 82. Kxg3 {[%emt 0:00:13]} Rg8 {[%emt 0:00:12]} 83. f3 {[%emt 0:00:20]} Rg7 {[%emt 0:00:05]} 84. Kf2 {[%emt 0:01:08]} Rc7 {[%emt 0:00:10]} 85. Ke3 {[%emt 0:00:08]} Rxc2 {[%emt 0:00:00]} 86. Kd3 {[%emt 0:00:16]} Ra2 {[%emt 0:00:01]} 87. Bd7 {[%emt 0:00:52]} Ra3+ {[%emt 0:00:08]} 88. Ke2 {[%emt 0:00:06]} Rc3 {[%emt 0:00:15]} 89. Bg4 {[%emt 0:00:41]} Kd4 {[%emt 0:00:01]} 90. Bf5 {[%emt 0:00:10]} Ra3 {[%emt 0:00:12]} 91. Be4 {[%emt 0:00:03]} Ra2+ {[%emt 0:00:02]} 92. Kf1 {[%emt 0:00:27]} Ke3 {[%emt 0:00:01]} 93. Bc6 {[%emt 0:00:17]} Rf2+ {[%emt 0:00:16]} 94. Kg1 {[%emt 0:00:13]} Ke2 {[%emt 0:00:06]} 95. Bd5 {[%emt 0:00:08]} Ke1 {[%emt 0:00:02]} 96. Be4 {[%emt 0:00:21]} Rb2 {[%emt 0:00:02]} 97. Bd5 {[%emt 0:00:38]} Rb5 {[%emt 0:00:02]} 98. Be4 {[%emt 0:00:14]} Rg5+ {[%emt 0:00:02]} 99. Kh2 {[%emt 0:00:04]} Kf2 {[%emt 0:00:08]} 100. Kh3 {[%emt 0:00:04]} Ke3 {[%emt 0:00:01]} 101. Kh2 {[%emt 0:02:23]} Kf4 {[%emt 0:00:11]} 102. Kh3 {[%emt 0:00:23]} Rg8 {[%emt 0:00:01]} 103. Kh2 {[%emt 0:00:09]} Rg3 {[%emt 0:00:03]} 104. Bc6 {[%emt 0:00:25]} Rg7 {[%emt 0:00:16]} 105. Be4 {[%emt 0:00:34]} Rg8 {[%emt 0:00:04]} 106. Bd5 {[%emt 0:01:02]} Rd8 {[%emt 0:00:07]} 107. Be4 {[%emt 0:00:08]} Rd2+ {[%emt 0:00:05]} 108. Kh3 {[%emt 0:00:47]} Rb2 {[%emt 0:00:02]} 109. Bc6 {[%emt 0:00:12]} Rb8 {[%emt 0:00:47]} 110. Be4 {[%emt 0:00:18]} Rh8+ {[%emt 0:01:03]} 111. Kg2 {[%emt 0:00:03]} Rh6 {[%emt 0:00:04]} 112. Bd5 {[%emt 0:00:41]} Rg6+ {[%emt 0:00:13]} 113. Kh2 {[%emt 0:00:39]} Rg3 {[%emt 0:00:09]} 114. Be4 {[%emt 0:00:22]} Rxf3 {[%emt 0:00:04]} 115. Bxf3 {[%emt 0:00:00]} 1/2-1/2

[Event "Konyaalti Open-A 2019"]
[Site "Konyaalti"]
[Date "2019.11.22"]
[Round "7.9"]
[White "Mirzoev, Azer"]
[Black "Rzayev, Askar Aliakbar"]
[Result "1-0"]
[ECO "E36"]
[WhiteElo "2472"]
[BlackElo "2116"]
[Annotator "ChessBase"]
[PlyCount "61"]
[EventDate "2019.11.20"]
[EventType "swiss"]
[EventCountry "TUR"]
[SourceTitle "playchess.com"]
[Source "ChessBase"]
[SourceQuality "1"]
[TimeControl "5400+30"]

1. d4 {[%emt 0:00:30]} Nf6 {[%emt 0:00:30]} 2. c4 {[%emt 0:00:30]} e6 {[%emt 0:00:30]} 3. Nc3 {[%emt 0:00:30]} Bb4 {[%emt 0:00:30]} 4. Qc2 {[%emt 0:00:30]} d5 {[%emt 0:00:30]} 5. a3 {[%emt 0:00:30]} Bxc3+ {[%emt 0:00:30]} 6. Qxc3 {[%emt 0:00:30]} dxc4 {[%emt 0:00:30]} 7. Qxc4 {[%emt 0:00:30]} O-O {[%emt 0:00:30]} 8. g3 {[%emt 0:02:30]} Nbd7 {[%emt 0:00:30]} 9. Bg2 {[%emt 0:00:30]} e5 {[%emt 0:00:30]} 10. Nf3 {[%emt 0:15:30]} Nb6 {[%emt 0:03:30]} 11. Qc5 {[%emt 0:04:30]} e4 {[%emt 0:00:30]} 12. Ne5 {[%emt 0:00:30]} h6 {[%emt 0:04:30]} 13. O-O {[%emt 0:00:30]} Be6 {[%emt 0:00:00]} 14. a4 {[%emt 0:04:30]} Nbd7 {[%emt 0:04:00]} 15. Qc2 {[%emt 0:02:30]} Bd5 {[%emt 0:00:00]} 16. b4 {[%emt 0:00:30]} c6 {[%emt 0:01:00]} 17. b5 {[%emt 0:02:30]} Rc8 {[%emt 0:01:30]} 18. bxc6 {[%emt 0:00:30]} bxc6 {[%emt 0:00:30]} 19. Ba3 {[%emt 0:04:30]} Re8 {[%emt 0:00:30]} 20. Nc4 {[%emt 0:01:30]} Re6 {[%emt 0:05:30]} 21. Bh3 {[%emt 0:02:30]} Nb6 {[%emt 0:02:30]} 22. Ne3 {[%emt 0:01:30]} Nbd7 {[%emt 0:02:30]} 23. Bxe6 {[%emt 0:03:30]} fxe6 {[%emt 0:00:30]} 24. Rab1 {[%emt 0:00:30]} Qe8 {[%emt 0:00:30]} 25. Rb7 {[%emt 0:05:30]} c5 {[%emt 0:05:30]} 26. Nxd5 {[%emt 0:02:30]} exd5 {[%emt 0:00:00]} 27. Bxc5 {[%emt 0:00:30]} Qh5 {[%emt 0:00:00]} 28. f3 {[%emt 0:03:30]} Nxc5 {[%emt 0:05:30]} 29. dxc5 {[%emt 0:00:30]} Qe5 {[%emt 0:01:30]} 30. c6 {[%emt 0:03:30]} d4 {[%emt 0:01:30]} 31. fxe4 {[%emt 0:03:30]} 1-0

[Event "Konyaalti Open-A 2019"]
[Site "Konyaalti"]
[Date "2019.11.22"]
[Round "7.10"]
[White "Burcu, Cagatay"]
[Black "Guliev, Sarhan"]
[Result "1-0"]
[ECO "D34"]
[WhiteElo "2331"]
[BlackElo "2311"]
[Annotator "NA"]
[PlyCount "74"]
[EventDate "2019.11.20"]
[EventType "swiss"]
[EventCountry "TUR"]
[SourceTitle "playchess.com"]
[Source "ChessBase"]
[SourceQuality "1"]
[TimeControl "5400+30"]

1. d4 {[%emt 0:00:30]} d5 {[%emt 0:00:30]} 2. Nf3 {[%emt 0:00:30]} c5 {[%emt 0:06:30]} 3. c4 {[%emt 0:03:30]} e6 {[%emt 0:00:30]} 4. cxd5 {[%emt 0:01:30]} exd5 {[%emt 0:01:30]} 5. g3 {[%emt 0:00:30]} Nc6 {[%emt 0:00:30]} 6. Bg2 {[%emt 0:00:30]} Nf6 {[%emt 0:00:30]} 7. O-O {[%emt 0:00:30]} h6 {[%emt 0:00:30]} 8. Nc3 {[%emt 0:00:30]} Be7 {[%emt 0:00:00]} 9. Be3 {[%emt 0:04:30]} cxd4 {[%emt 0:06:00]} 10. Nxd4 {[%emt 0:00:00]} O-O {[%emt 0:00:00]} 11. Nxc6 {[%emt 0:08:00]} bxc6 {[%emt 0:00:00]} 12. Na4 {[%emt 0:00:30] D34: Tarrasch Defence: 6 g3 Nf6 7 Bg2 Be7} Bg4 {[%emt 0:05:30]} 13. Rc1 {[%emt 0:07:30]} Qd7 {[%emt 0:02:30]} 14. Bc5 {[%emt 0:16:30]} Rfe8 {[%emt 0:04:30]} 15. Re1 {[%emt 0:05:30]} h5 $146 {[%emt 0:07:30]} ({Predecessor:} 15... Qb7 16. Qd4 Bd8 17. e3 Ba5 18. b4 Bc7 19. Qd3 a5 {1-0 (55) Haug,J (2355)-Royset,P (2285) Kragero 2018}) 16. Qd4 {[%emt 0:06:30]} Bd8 {[%emt 0:02:30]} 17. f3 {[%emt 0:14:30]} Bh3 {[%emt 0:04:30]} 18. Qf4 {[%emt 0:00:30]} Bxg2 {[%emt 0:00:30]} 19. Kxg2 {[%emt 0:00:30]} Ne4 {[%emt 0:02:30]} 20. fxe4 {[%emt 0:04:30]} Rxe4 {[%emt 0:00:00]} 21. Qd6 {[%emt 0:05:10]} Qxd6 {[%emt 0:00:00]} 22. Bxd6 {[%emt 0:00:07]} Rxa4 {[%emt 0:00:30]} 23. Rxc6 {[%emt 0:00:01]} Rxa2 {[%emt 0:00:30]} 24. Be5 {[%emt 0:04:26]} Bb6 {[%emt 0:02:30]} 25. Rd1 {[%emt 0:06:31]} f6 {[%emt 0:13:30]} 26. Bd4 {[%emt 0:05:21]} Bxd4 $18 {[%emt 0:03:30]} (26... Rxb2 $4 {[%emt 0:02:30][%mdl 8192]}) 27. Rxd4 {[%emt 0:00:30]} Rxb2 {[%emt 0:00:30]} 28. Rxd5 Rxe2+ 29. Kh3 a5 {[%emt 0:03:00]} 30. Rd7 {[%emt 0:05:21]} Re5 {[%emt 0:03:30]} 31. Kg2 {[%emt 0:00:30]} a4 {[%emt 0:00:30]} 32. h4 {[%emt 0:00:21]} Re4 {[%emt 0:00:30]} 33. Kf3 {[%emt 0:00:38]} Rg4 {[%emt 0:00:30]} 34. Rcc7 {[%emt 0:00:03]} Rb8 {[%emt 0:01:30]} 35. Ra7 {[%emt 0:00:59]} Rb3+ {[%emt 0:00:30]} 36. Kf2 {[%emt 0:00:30]} Rbxg3 {[%emt 0:00:30]} 37. Rxa4 {[%emt 0:00:30]} Rg2+ 1-0

[Event "Konyaalti Open-A 2019"]
[Site "Konyaalti"]
[Date "2019.11.21"]
[Round "8.1"]
[White "Shanava, Konstantine"]
[Black "Moiseenko, Vadim"]
[Result "1-0"]
[ECO "C54"]
[WhiteElo "2491"]
[BlackElo "2532"]
[Annotator "ChessBase"]
[PlyCount "136"]
[EventDate "2019.11.20"]
[EventType "swiss"]
[EventCountry "TUR"]
[SourceTitle "playchess.com"]
[Source "ChessBase"]
[SourceQuality "1"]
[TimeControl "5400+30"]

1. e4 {[%emt 0:00:30]} e5 {[%emt 0:03:30]} 2. Nf3 {[%emt 0:02:30]} Nc6 {[%emt 0:00:00]} 3. Bc4 {[%emt 0:01:30]} Nf6 {[%emt 0:00:00]} 4. d3 {[%emt 0:00:30]} Bc5 {[%emt 0:02:30]} 5. O-O {[%emt 0:01:30]} d6 {[%emt 0:00:30]} 6. c3 {[%emt 0:01:30]} a6 {[%emt 0:02:30]} 7. d4 {[%emt 0:05:30]} Ba7 {[%emt 0:00:30]} 8. dxe5 {[%emt 0:04:30]} Nxe5 {[%emt 0:00:30]} 9. Nxe5 {[%emt 0:05:30]} dxe5 {[%emt 0:00:30]} 10. Qxd8+ {[%emt 0:01:30]} Kxd8 {[%emt 0:00:30]} 11. Nd2 {[%emt 0:00:30]} Ke7 {[%emt 0:01:30]} 12. Nf3 {[%emt 0:06:30]} Nd7 {[%emt 0:08:30]} 13. Kh1 {[%emt 0:03:30]} f6 {[%emt 0:01:30]} 14. b4 {[%emt 0:02:30]} Rd8 {[%emt 0:07:30]} 15. Bb3 {[%emt 0:04:30]} b5 {[%emt 0:09:30]} 16. Nh4 {[%emt 0:10:30]} g6 {[%emt 0:02:30]} 17. f4 {[%emt 0:01:30]} Bb7 {[%emt 0:01:30]} 18. Nf3 {[%emt 0:08:30]} exf4 {[%emt 0:09:30]} 19. Bxf4 {[%emt 0:02:30]} Bxe4 {[%emt 0:00:00]} 20. Nd2 {[%emt 0:25:39]} Bd3 {[%emt 0:08:00]} 21. Rfe1+ {[%emt 0:02:08]} Ne5 {[%emt 0:00:30]} 22. Nf3 {[%emt 0:00:05]} Bf2 {[%emt 0:00:30]} 23. Nxe5 {[%emt 0:00:27]} fxe5 {[%emt 0:01:30]} 24. Rxe5+ {[%emt 0:02:12]} Kf6 {[%emt 0:00:00]} 25. Re6+ {[%emt 0:00:26]} Kf5 {[%emt 0:00:00]} 26. Bxc7 {[%emt 0:00:10]} Rd7 {[%emt 0:04:30]} 27. Re5+ {[%emt 0:00:11]} Kf6 {[%emt 0:00:30]} 28. Re6+ {[%emt 0:00:14]} Kg5 {[%emt 0:00:30]} 29. Bd6 {[%emt 0:00:39]} Bf5 {[%emt 0:12:30]} 30. Be7+ {[%emt 0:00:06]} Kh5 {[%emt 0:00:30]} 31. Re5 {[%emt 0:01:08]} Raa7 {[%emt 0:01:30]} 32. Bf6 {[%emt 0:01:50]} Bh4 {[%emt 0:08:11]} 33. Bxh4 {[%emt 0:00:06]} Kxh4 {[%emt 0:00:03]} 34. c4 {[%emt 0:01:10]} Rd4 {[%emt 0:04:10]} 35. cxb5 {[%emt 0:00:05]} Rxb4 {[%emt 0:00:05]} 36. bxa6 {[%emt 0:00:04]} Rxa6 {[%emt 0:00:03]} 37. Rae1 {[%emt 0:00:18]} Rd4 {[%emt 0:01:29]} 38. Kg1 {[%emt 0:00:10]} h5 {[%emt 0:02:20]} 39. R1e2 {[%emt 0:01:07]} Kg5 {[%emt 0:01:26]} 40. Rd5 {[%emt 0:00:19]} Rf4 {[%emt 0:00:56]} 41. g3 {[%emt 0:02:33]} Rb4 {[%emt 0:00:35]} 42. h4+ {[%emt 0:01:23]} Kh6 {[%emt 0:01:24]} 43. Rd8 {[%emt 0:00:25]} Rb7 {[%emt 0:00:50]} 44. Rde8 {[%emt 0:01:39]} Raa7 {[%emt 0:01:15]} 45. Kf2 {[%emt 0:00:16]} Rd7 {[%emt 0:01:40]} 46. Rh8+ {[%emt 0:00:19]} Kg7 {[%emt 0:00:07]} 47. Rg8+ {[%emt 0:00:04]} Kh7 {[%emt 0:00:35]} 48. Rb8 {[%emt 0:00:38]} Bg4 {[%emt 0:01:06]} 49. Ree8 {[%emt 0:00:48]} Rd2+ {[%emt 0:01:08]} 50. Ke3 {[%emt 0:00:20]} Rg2 {[%emt 0:00:13]} 51. Kf4 {[%emt 0:01:07]} Rf2+ {[%emt 0:00:15]} 52. Ke5 {[%emt 0:00:26]} Rf5+ {[%emt 0:00:11]} 53. Ke4 {[%emt 0:00:42]} Bf3+ {[%emt 0:00:06]} 54. Kd4 {[%emt 0:00:31]} Rd7+ {[%emt 0:00:26]} 55. Kc3 {[%emt 0:00:08]} Bd5 {[%emt 0:03:55]} 56. Re3 {[%emt 0:00:02]} Rc7+ {[%emt 0:01:21]} 57. Kb4 {[%emt 0:00:44]} Bxb3 {[%emt 0:00:15]} 58. axb3 {[%emt 0:01:03]} g5 {[%emt 0:00:04]} 59. Rb5 {[%emt 0:00:14]} Rcf7 {[%emt 0:00:40]} 60. Rxf5 {[%emt 0:01:26]} Rxf5 {[%emt 0:00:01]} 61. hxg5 {[%emt 0:00:03]} Kg6 {[%emt 0:00:19]} 62. Kc4 {[%emt 0:00:18]} Rf8 {[%emt 0:01:34]} 63. b4 {[%emt 0:00:04]} Rc8+ {[%emt 0:00:00]} 64. Kd5 {[%emt 0:00:08]} Rb8 {[%emt 0:00:16]} 65. Kc5 {[%emt 0:00:18]} Rc8+ {[%emt 0:00:24]} 66. Kd6 {[%emt 0:00:09]} Rb8 {[%emt 0:00:02]} 67. Rb3 {[%emt 0:00:35]} Kxg5 {[%emt 0:00:07]} 68. b5 {[%emt 0:00:05]} Kg4 {[%emt 0:00:00]} 1-0

[Event "Konyaalti Open-A 2019"]
[Site "Konyaalti"]
[Date "2019.11.21"]
[Round "8.2"]
[White "Mirzoev, Azer"]
[Black "Ibrahimov, Rasul"]
[Result "0-1"]
[ECO "A13"]
[WhiteElo "2472"]
[BlackElo "2518"]
[Annotator "ChessBase"]
[PlyCount "148"]
[EventDate "2019.11.20"]
[EventType "swiss"]
[EventCountry "TUR"]
[SourceTitle "playchess.com"]
[Source "ChessBase"]
[SourceQuality "1"]
[TimeControl "5400+30"]

1. Nf3 {[%emt 0:05:30]} d5 {[%emt 0:01:30]} 2. c4 {[%emt 0:00:30]} e6 {[%emt 0:00:30]} 3. e3 {[%emt 0:01:30]} Nf6 {[%emt 0:00:30]} 4. b3 {[%emt 0:00:00]} dxc4 {[%emt 0:00:30]} 5. bxc4 {[%emt 0:00:00]} c5 {[%emt 0:01:30]} 6. Bb2 {[%emt 0:00:30]} Be7 {[%emt 0:03:30]} 7. d4 {[%emt 0:04:30]} O-O {[%emt 0:02:30]} 8. Nbd2 {[%emt 0:00:00]} b6 {[%emt 0:01:30]} 9. Bd3 {[%emt 0:00:00]} Bb7 {[%emt 0:00:30]} 10. O-O {[%emt 0:00:30]} Nc6 {[%emt 0:03:30]} 11. Qe2 {[%emt 0:00:00]} Qc7 {[%emt 0:10:30]} 12. Rad1 {[%emt 0:02:00]} Rad8 {[%emt 0:02:30]} 13. Bb1 {[%emt 0:02:30]} Rfe8 {[%emt 0:11:30]} 14. Rfe1 {[%emt 0:03:30]} Ba6 {[%emt 0:08:30]} 15. h3 {[%emt 0:05:30]} Bf8 {[%emt 0:07:30]} 16. Nb3 {[%emt 0:14:30]} cxd4 {[%emt 0:09:30]} 17. exd4 {[%emt 0:00:30]} g6 {[%emt 0:00:00]} 18. Rc1 {[%emt 0:06:30]} Bg7 {[%emt 0:01:00]} 19. Qe3 {[%emt 0:01:30]} Qb8 {[%emt 0:04:30]} 20. Ba3 {[%emt 0:01:30]} Bb7 {[%emt 0:02:30]} 21. Ne5 {[%emt 0:02:30]} a5 {[%emt 0:03:30]} 22. Rcd1 {[%emt 0:10:30]} a4 {[%emt 0:03:35]} 23. Nc1 {[%emt 0:00:30]} Nxe5 {[%emt 0:00:51]} 24. dxe5 {[%emt 0:00:00]} Nd7 {[%emt 0:00:24]} 25. Bd6 {[%emt 0:00:00]} Qc8 {[%emt 0:00:10]} 26. Be4 {[%emt 0:06:30]} Bxe4 {[%emt 0:02:15]} 27. Qxe4 {[%emt 0:00:00]} Nc5 {[%emt 0:00:22]} 28. Qc2 {[%emt 0:00:00]} Qc6 {[%emt 0:01:09]} 29. Ne2 {[%emt 0:06:30]} Rc8 {[%emt 0:01:01]} 30. Nd4 {[%emt 0:00:30]} Qa8 {[%emt 0:01:25]} 31. Nb5 {[%emt 0:02:30]} Red8 {[%emt 0:00:44]} 32. Qe2 {[%emt 0:02:30]} Rd7 {[%emt 0:04:46]} 33. h4 {[%emt 0:01:30]} Nb7 {[%emt 0:00:34]} 34. Bb4 {[%emt 0:02:30]} Rxd1 {[%emt 0:01:03]} 35. Rxd1 {[%emt 0:00:30]} Rd8 {[%emt 0:00:47]} 36. Nd6 {[%emt 0:03:52]} Nxd6 {[%emt 0:01:03]} 37. Bxd6 {[%emt 0:00:20]} Qc6 {[%emt 0:00:21]} 38. Rd4 {[%emt 0:01:14]} h5 {[%emt 0:00:35]} 39. g4 {[%emt 0:03:22]} hxg4 {[%emt 0:03:44]} 40. Qxg4 {[%emt 0:02:14]} Qe8 {[%emt 0:01:54]} 41. Kg2 {[%emt 0:03:13]} Bf8 {[%emt 0:01:13]} 42. Qf3 {[%emt 0:00:52]} Bxd6 {[%emt 0:00:49]} 43. exd6 {[%emt 0:00:11]} e5 {[%emt 0:00:17]} 44. Rd5 {[%emt 0:00:18]} Qe6 {[%emt 0:00:22]} 45. Qe4 {[%emt 0:00:38]} Rxd6 {[%emt 0:00:33]} 46. Rxe5 {[%emt 0:00:25]} Qf6 {[%emt 0:00:20]} 47. c5 {[%emt 0:00:28]} bxc5 {[%emt 0:00:12]} 48. Rxc5 {[%emt 0:00:07]} Rd4 {[%emt 0:02:13]} 49. Qe8+ {[%emt 0:00:45]} Kg7 {[%emt 0:01:12]} 50. Rc8 {[%emt 0:00:39]} Rg4+ {[%emt 0:00:09]} 51. Kf1 {[%emt 0:00:37]} Qa6+ {[%emt 0:00:04]} 52. Ke1 {[%emt 0:00:54]} Qe6+ {[%emt 0:01:11]} 53. Qxe6 {[%emt 0:00:47]} fxe6 {[%emt 0:00:02]} 54. Ra8 {[%emt 0:00:20]} Rxh4 {[%emt 0:00:16]} 55. Kd2 {[%emt 0:00:26]} g5 {[%emt 0:00:48]} 56. a3 {[%emt 0:00:09]} Kf6 {[%emt 0:00:48]} 57. Ra5 {[%emt 0:00:15]} e5 {[%emt 0:00:16]} 58. Ra8 {[%emt 0:00:30]} Rf4 {[%emt 0:00:42]} 59. Ke3 {[%emt 0:00:41]} Rc4 {[%emt 0:00:44]} 60. Ke2 {[%emt 0:00:24]} Kf5 {[%emt 0:00:48]} 61. Rf8+ {[%emt 0:00:33]} Ke6 {[%emt 0:00:22]} 62. Re8+ {[%emt 0:00:14]} Kd5 {[%emt 0:00:12]} 63. Rd8+ {[%emt 0:00:30]} Kc5 {[%emt 0:00:23]} 64. Rc8+ {[%emt 0:00:56]} Kd4 {[%emt 0:00:16]} 65. Rd8+ {[%emt 0:00:42]} Kc3 {[%emt 0:00:13]} 66. Rb8 {[%emt 0:01:17]} Kc2 {[%emt 0:01:13]} 67. Rb5 {[%emt 0:02:56]} Rc3 {[%emt 0:00:55]} 68. Rxe5 {[%emt 0:00:28]} Rxa3 {[%emt 0:00:03]} 69. Rxg5 {[%emt 0:00:14]} Rb3 {[%emt 0:00:45]} 70. Ra5 {[%emt 0:00:09]} a3 {[%emt 0:00:06]} 71. f4 {[%emt 0:00:17]} Kb2 {[%emt 0:00:09]} 72. f5 {[%emt 0:00:04]} a2 {[%emt 0:00:03]} 73. f6 {[%emt 0:00:38]} a1=Q {[%emt 0:00:33]} 74. Rxa1 {[%emt 0:00:05]} Kxa1 {[%emt 0:00:00]} 0-1

[Event "Konyaalti Open-A 2019"]
[Site "Konyaalti"]
[Date "2019.11.21"]
[Round "8.3"]
[White "Gokerkan, Cem Kaan"]
[Black "Lortkipanidze, Nodar"]
[Result "1/2-1/2"]
[ECO "A08"]
[WhiteElo "2452"]
[BlackElo "2377"]
[Annotator "ChessBase"]
[PlyCount "94"]
[EventDate "2019.11.20"]
[EventType "swiss"]
[EventCountry "TUR"]
[SourceTitle "playchess.com"]
[Source "ChessBase"]
[SourceQuality "1"]
[TimeControl "5400+30"]

1. e4 {[%emt 0:10:30]} e6 {[%emt 0:00:30]} 2. d3 {[%emt 0:08:30]} d5 {[%emt 0:00:00]} 3. Nd2 {[%emt 0:00:00]} c5 {[%emt 0:00:00]} 4. Ngf3 {[%emt 0:00:00]} Nc6 {[%emt 0:00:00]} 5. g3 {[%emt 0:00:30]} g6 {[%emt 0:00:00]} 6. Bg2 {[%emt 0:00:30]} Bg7 {[%emt 0:00:30]} 7. O-O {[%emt 0:01:30]} Nge7 {[%emt 0:00:00]} 8. Re1 {[%emt 0:02:30]} b6 {[%emt 0:03:00]} 9. h4 {[%emt 0:03:30]} h6 {[%emt 0:00:30]} 10. Nf1 {[%emt 0:07:30]} dxe4 {[%emt 0:00:30]} 11. dxe4 {[%emt 0:01:30]} Ba6 {[%emt 0:04:30]} 12. c3 {[%emt 0:02:30]} Qxd1 {[%emt 0:00:30]} 13. Rxd1 {[%emt 0:00:00]} O-O {[%emt 0:00:30]} 14. Ne3 {[%emt 0:07:00]} Rad8 {[%emt 0:03:30]} 15. Re1 {[%emt 0:00:30]} f5 {[%emt 0:02:30]} 16. exf5 {[%emt 0:07:30]} exf5 {[%emt 0:01:30]} 17. Bf1 {[%emt 0:00:30]} Bxf1 {[%emt 0:01:30]} 18. Nxf1 {[%emt 0:00:30]} Nd5 {[%emt 0:00:30]} 19. Re6 {[%emt 0:01:30]} Rf6 {[%emt 0:00:30]} 20. Rxf6 {[%emt 0:02:30]} Nxf6 {[%emt 0:00:30]} 21. Bf4 {[%emt 0:00:30]} Ne4 {[%emt 0:05:30]} 22. Re1 {[%emt 0:03:30]} b5 {[%emt 0:03:30]} 23. N1d2 {[%emt 0:02:30]} Nxd2 {[%emt 0:00:00]} 24. Nxd2 {[%emt 0:00:30]} Kf7 {[%emt 0:01:00]} 25. a3 {[%emt 0:14:30]} a5 {[%emt 0:05:30]} 26. Kg2 {[%emt 0:03:04]} a4 {[%emt 0:01:30]} 27. Nf3 {[%emt 0:02:41]} Rd5 {[%emt 0:02:30]} 28. Re2 {[%emt 0:00:45]} Na5 {[%emt 0:04:30]} 29. Be5 {[%emt 0:03:15]} Nc4 {[%emt 0:00:30]} 30. Bxg7 {[%emt 0:00:36]} Kxg7 {[%emt 0:00:30]} 31. Re7+ {[%emt 0:01:28]} Kf6 {[%emt 0:00:30]} 32. Rb7 {[%emt 0:00:14]} Nd6 {[%emt 0:00:00]} 33. Rb8 {[%emt 0:01:01]} g5 {[%emt 0:01:00]} 34. hxg5+ {[%emt 0:05:00]} hxg5 {[%emt 0:00:30]} 35. g4 {[%emt 0:04:14]} fxg4 {[%emt 0:00:00]} 36. Nh2 {[%emt 0:00:01]} Rd2 {[%emt 0:01:00]} 37. Nxg4+ {[%emt 0:00:09]} Ke6 {[%emt 0:00:00]} 38. Rg8 {[%emt 0:00:24]} Rxb2 {[%emt 0:01:00]} 39. Rxg5 {[%emt 0:00:01]} Ra2 {[%emt 0:03:30]} 40. Re5+ {[%emt 0:00:22]} Kd7 {[%emt 0:00:30]} 41. Rxc5 {[%emt 0:00:03]} Rxa3 {[%emt 0:00:00]} 42. Ne5+ {[%emt 0:00:12]} Ke8 {[%emt 0:02:00]} 43. Rd5 {[%emt 0:03:54]} Ke7 {[%emt 0:01:30]} 44. Nc6+ {[%emt 0:00:03]} Ke6 {[%emt 0:01:30]} 45. Re5+ {[%emt 0:00:01]} Kd7 {[%emt 0:02:30]} 46. Nd4 {[%emt 0:00:02]} Rxc3 {[%emt 0:00:00]} 47. Nxb5 {[%emt 0:00:00]} Kc6 1/2-1/2